Workbook

Sheet 売上状況（解答）
A1: 氏名
I3: 担当者名
I4: 佐藤
I6: 地域 | J6: 件数 | K6: 金額
I7: 高知 | J7: =COUNTIFS($I$13:$I$62,$I$4,$J$13:$J$62,I7) -> 4 | K7: =SUMIFS($H$13:$H$62,$I$13:$I$62,$I$4,$J$13:$J$62,I7) -> 505000
I8: 愛媛 | J8: =COUNTIFS($I$13:$I$62,$I$4,$J$13:$J$62,I8) -> 0 | K8: =SUMIFS($H$13:$H$62,$I$13:$I$62,$I$4,$J$13:$J$62,I8) -> 0
I9: 香川 | J9: 4 | K9: 550000
I10: 徳島 | J10: =COUNTIFS($I$13:$I$62,$I$4,$J$13:$J$62,I10) -> 2 | K10: 220000
B11: 売上状況確認表
B12: 日付 | C12: 顧客名 | D12: 商品コード | E12: 商品名 | F12: 数量 | G12: 単価 | H12: 売上額 | I12: 営業担当 | J12: 地域 | K12: 判定
B13: 2025-03-01 | C13: シンエイ電機株式会社 | D13: P004 | E13: =VLOOKUP(D13,商品マスター!$A$2:$C$5,2,0) -> モニター | F13: 5 | G13: =VLOOKUP(D13,商品マスター!$A$2:$C$5,3,0) -> 30000 | H13: =F13*G13 -> 150000 | I13: 鈴木 | J13: 高知 | K13: =IF(H13>=300000,"◎",IF(H13>=200000,"○","")) -> 
B14: 2025-03-02 | C14: 大和電販株式会社 | D14: P003 | E14: =VLOOKUP(D14,商品マスター!$A$2:$C$5,2,0) -> プリンタ | F14: 4 | G14: =VLOOKUP(D14,商品マスター!$A$2:$C$5,3,0) -> 25000 | H14: =F14*G14 -> 100000 | I14: 佐藤 | J14: 徳島 | K14: =IF(H14>=300000,"◎",IF(H14>=200000,"○","")) -> 
B15: 2025-03-03 | C15: 大和電販株式会社 | D15: P001 | E15: =VLOOKUP(D15,商品マスター!$A$2:$C$5,2,0) -> ノートPC | F15: 2 | G15: =VLOOKUP(D15,商品マスター!$A$2:$C$5,3,0) -> 85000 | H15: =F15*G15 -> 170000 | I15: 鈴木 | J15: 香川 | K15: =IF(H15>=300000,"◎",IF(H15>=200000,"○","")) -> 
B16: 2025-03-03 | C16: 大和電販株式会社 | D16: P004 | E16: =VLOOKUP(D16,商品マスター!$A$2:$C$5,2,0) -> モニター | F16: 5 | G16: =VLOOKUP(D16,商品マスター!$A$2:$C$5,3,0) -> 30000 | H16: =F16*G16 -> 150000 | I16: 鈴木 | J16: 愛媛 | K16: =IF(H16>=300000,"◎",IF(H16>=200000,"○","")) -> 
B17: 2025-03-04 | C17: シンエイ電機株式会社 | D17: P004 | E17: =VLOOKUP(D17,商品マスター!$A$2:$C$5,2,0) -> モニター | F17: 3 | G17: =VLOOKUP(D17,商品マスター!$A$2:$C$5,3,0) -> 30000 | H17: =F17*G17 -> 90000 | I17: 佐藤 | J17: 高知 | K17: =IF(H17>=300000,"◎",IF(H17>=200000,"○","")) -> 
B18: 2025-03-04 | C18: シンエイ電機株式会社 | D18: P001 | E18: =VLOOKUP(D18,商品マスター!$A$2:$C$5,2,0) -> ノートPC | F18: 1 | G18: =VLOOKUP(D18,商品マスター!$A$2:$C$5,3,0) -> 85000 | H18: =F18*G18 -> 85000 | I18: 鈴木 | J18: 高知 | K18: =IF(H18>=300000,"◎",IF(H18>=200000,"○","")) -> 
B19: 2025-03-05 | C19: 誠電機株式会社 | D19: P004 | E19: =VLOOKUP(D19,商品マスター!$A$2:$C$5,2,0) -> モニター | F19: 3 | G19: =VLOOKUP(D19,商品マスター!$A$2:$C$5,3,0) -> 30000 | H19: =F19*G19 -> 90000 | I19: 田中 | J19: 高知 | K19: =IF(H19>=300000,"◎",IF(H19>=200000,"○","")) -> 
B20: 2025-03-05 | C20: シンエイ電機株式会社 | D20: P003 | E20: =VLOOKUP(D20,商品マスター!$A$2:$C$5,2,0) -> プリンタ | F20: 2 | G20: =VLOOKUP(D20,商品マスター!$A$2:$C$5,3,0) -> 25000 | H20: =F20*G20 -> 50000 | I20: 鈴木 | J20: 高知 | K20: =IF(H20>=300000,"◎",IF(H20>=200000,"○","")) -> 
B21: 2025-03-05 | C21: シンエイ電機株式会社 | D21: P004 | E21: =VLOOKUP(D21,商品マスター!$A$2:$C$5,2,0) -> モニター | F21: 1 | G21: =VLOOKUP(D21,商品マスター!$A$2:$C$5,3,0) -> 30000 | H21: =F21*G21 -> 30000 | I21: 高橋 | J21: 愛媛 | K21: =IF(H21>=300000,"◎",IF(H21>=200000,"○","")) -> 
B22: 2025-03-06 | C22: シンエイ電機株式会社 | D22: P001 | E22: =VLOOKUP(D22,商品マスター!$A$2:$C$5,2,0) -> ノートPC | F22: 3 | G22: =VLOOKUP(D22,商品マスター!$A$2:$C$5,3,0) -> 85000 | H22: =F22*G22 -> 255000 | I22: 高橋 | J22: 香川 | K22: =IF(H22>=300000,"◎",IF(H22>=200000,"○","")) -> ○
B23: 2025-03-06 | C23: シンエイ電機株式会社 | D23: P003 | E23: =VLOOKUP(D23,商品マスター!$A$2:$C$5,2,0) -> プリンタ | F23: 2 | G23: =VLOOKUP(D23,商品マスター!$A$2:$C$5,3,0) -> 25000 | H23: =F23*G23 -> 50000 | I23: 鈴木 | J23: 愛媛 | K23: =IF(H23>=300000,"◎",IF(H23>=200000,"○","")) -> 
B24: 2025-03-07 | C24: 大和電販株式会社 | D24: P002 | E24: =VLOOKUP(D24,商品マスター!$A$2:$C$5,2,0) -> タブレット | F24: 1 | G24: =VLOOKUP(D24,商品マスター!$A$2:$C$5,3,0) -> 60000 | H24: =F24*G24 -> 60000 | I24: 佐藤 | J24: 香川 | K24: =IF(H24>=300000,"◎",IF(H24>=200000,"○","")) -> 
B25: 2025-03-10 | C25: 誠電機株式会社 | D25: P004 | E25: =VLOOKUP(D25,商品マスター!$A$2:$C$5,2,0) -> モニター | F25: 2 | G25: =VLOOKUP(D25,商品マスター!$A$2:$C$5,3,0) -> 30000 | H25: =F25*G25 -> 60000 | I25: 田中 | J25: 愛媛 | K25: =IF(H25>=300000,"◎",IF(H25>=200000,"○","")) -> 
B26: 2025-03-10 | C26: シンエイ電機株式会社 | D26: P004 | E26: =VLOOKUP(D26,商品マスター!$A$2:$C$5,2,0) -> モニター | F26: 3 | G26: =VLOOKUP(D26,商品マスター!$A$2:$C$5,3,0) -> 30000 | H26: =F26*G26 -> 90000 | I26: 佐藤 | J26: 香川 | K26: =IF(H26>=300000,"◎",IF(H26>=200000,"○","")) -> 
B27: 2025-03-11 | C27: 誠電機株式会社 | D27: P001 | E27: =VLOOKUP(D27,商品マスター!$A$2:$C$5,2,0) -> ノートPC | F27: 5 | G27: =VLOOKUP(D27,商品マスター!$A$2:$C$5,3,0) -> 85000 | H27: =F27*G27 -> 425000 | I27: 高橋 | J27: 香川 | K27: =IF(H27>=300000,"◎",IF(H27>=200000,"○","")) -> ◎
B28: 2025-03-12 | C28: 大和電販株式会社 | D28: P002 | E28: =VLOOKUP(D28,商品マスター!$A$2:$C$5,2,0) -> タブレット | F28: 4 | G28: =VLOOKUP(D28,商品マスター!$A$2:$C$5,3,0) -> 60000 | H28: =F28*G28 -> 240000 | I28: 田中 | J28: 香川 | K28: =IF(H28>=300000,"◎",IF(H28>=200000,"○","")) -> ○
B29: 2025-03-12 | C29: シンエイ電機株式会社 | D29: P004 | E29: =VLOOKUP(D29,商品マスター!$A$2:$C$5,2,0) -> モニター | F29: 4 | G29: =VLOOKUP(D29,商品マスター!$A$2:$C$5,3,0) -> 30000 | H29: =F29*G29 -> 120000 | I29: 高橋 | J29: 高知 | K29: =IF(H29>=300000,"◎",IF(H29>=200000,"○","")) -> 
B30: 2025-03-12 | C30: 誠電機株式会社 | D30: P004 | E30: =VLOOKUP(D30,商品マスター!$A$2:$C$5,2,0) -> モニター | F30: 5 | G30: =VLOOKUP(D30,商品マスター!$A$2:$C$5,3,0) -> 30000 | H30: =F30*G30 -> 150000 | I30: 佐藤 | J30: 高知 | K30: =IF(H30>=300000,"◎",IF(H30>=200000,"○","")) -> 
B31: 2025-03-13 | C31: 大和電販株式会社 | D31: P001 | E31: =VLOOKUP(D31,商品マスター!$A$2:$C$5,2,0) -> ノートPC | F31: 3 | G31: =VLOOKUP(D31,商品マスター!$A$2:$C$5,3,0) -> 85000 | H31: =F31*G31 -> 255000 | I31: 田中 | J31: 高知 | K31: =IF(H31>=300000,"◎",IF(H31>=200000,"○","")) -> ○
B32: 2025-03-14 | C32: シンエイ電機株式会社 | D32: P001 | E32: =VLOOKUP(D32,商品マスター!$A$2:$C$5,2,0) -> ノートPC | F32: 3 | G32: =VLOOKUP(D32,商品マスター!$A$2:$C$5,3,0) -> 85000 | H32: =F32*G32 -> 255000 | I32: 高橋 | J32: 香川 | K32: =IF(H32>=300000,"◎",IF(H32>=200000,"○","")) -> ○
B33: 2025-03-14 | C33: 誠電機株式会社 | D33: P004 | E33: =VLOOKUP(D33,商品マスター!$A$2:$C$5,2,0) -> モニター | F33: 4 | G33: =VLOOKUP(D33,商品マスター!$A$2:$C$5,3,0) -> 30000 | H33: =F33*G33 -> 120000 | I33: 田中 | J33: 高知 | K33: =IF(H33>=300000,"◎",IF(H33>=200000,"○","")) -> 
B34: 2025-03-15 | C34: 誠電機株式会社 | D34: P003 | E34: =VLOOKUP(D34,商品マスター!$A$2:$C$5,2,0) -> プリンタ | F34: 2 | G34: =VLOOKUP(D34,商品マスター!$A$2:$C$5,3,0) -> 25000 | H34: =F34*G34 -> 50000 | I34: 高橋 | J34: 愛媛 | K34: =IF(H34>=300000,"◎",IF(H34>=200000,"○","")) -> 
B35: 2025-03-16 | C35: 誠電機株式会社 | D35: P004 | E35: =VLOOKUP(D35,商品マスター!$A$2:$C$5,2,0) -> モニター | F35: 1 | G35: =VLOOKUP(D35,商品マスター!$A$2:$C$5,3,0) -> 30000 | H35: =F35*G35 -> 30000 | I35: 鈴木 | J35: 愛媛 | K35: =IF(H35>=300000,"◎",IF(H35>=200000,"○","")) -> 
B36: 2025-03-18 | C36: 大和電販株式会社 | D36: P002 | E36: =VLOOKUP(D36,商品マスター!$A$2:$C$5,2,0) -> タブレット | F36: 5 | G36: =VLOOKUP(D36,商品マスター!$A$2:$C$5,3,0) -> 60000 | H36: =F36*G36 -> 300000 | I36: 佐藤 | J36: 香川 | K36: =IF(H36>=300000,"◎",IF(H36>=200000,"○","")) -> ◎
B37: 2025-03-19 | C37: シンエイ電機株式会社 | D37: P001 | E37: =VLOOKUP(D37,商品マスター!$A$2:$C$5,2,0) -> ノートPC | F37: 3 | G37: =VLOOKUP(D37,商品マスター!$A$2:$C$5,3,0) -> 85000 | H37: =F37*G37 -> 255000 | I37: 田中 | J37: 徳島 | K37: =IF(H37>=300000,"◎",IF(H37>=200000,"○","")) -> ○
B38: 2025-03-19 | C38: 誠電機株式会社 | D38: P001 | E38: =VLOOKUP(D38,商品マスター!$A$2:$C$5,2,0) -> ノートPC | F38: 4 | G38: =VLOOKUP(D38,商品マスター!$A$2:$C$5,3,0) -> 85000 | H38: =F38*G38 -> 340000 | I38: 鈴木 | J38: 高知 | K38: =IF(H38>=300000,"◎",IF(H38>=200000,"○","")) -> ◎
B39: 2025-03-19 | C39: 誠電機株式会社 | D39: P003 | E39: =VLOOKUP(D39,商品マスター!$A$2:$C$5,2,0) -> プリンタ | F39: 4 | G39: =VLOOKUP(D39,商品マスター!$A$2:$C$5,3,0) -> 25000 | H39: =F39*G39 -> 100000 | I39: 田中 | J39: 愛媛 | K39: =IF(H39>=300000,"◎",IF(H39>=200000,"○","")) -> 
B40: 2025-03-20 | C40: 誠電機株式会社 | D40: P001 | E40: =VLOOKUP(D40,商品マスター!$A$2:$C$5,2,0) -> ノートPC | F40: 3 | G40: =VLOOKUP(D40,商品マスター!$A$2:$C$5,3,0) -> 85000 | H40: =F40*G40 -> 255000 | I40: 高橋 | J40: 高知 | K40: =IF(H40>=300000,"◎",IF(H40>=200000,"○","")) -> ○
B41: 2025-03-20 | C41: 誠電機株式会社 | D41: P003 | E41: =VLOOKUP(D41,商品マスター!$A$2:$C$5,2,0) -> プリンタ | F41: 1 | G41: =VLOOKUP(D41,商品マスター!$A$2:$C$5,3,0) -> 25000 | H41: =F41*G41 -> 25000 | I41: 佐藤 | J41: 高知 | K41: =IF(H41>=300000,"◎",IF(H41>=200000,"○","")) -> 
B42: 2025-03-21 | C42: 誠電機株式会社 | D42: P001 | E42: =VLOOKUP(D42,商品マスター!$A$2:$C$5,2,0) -> ノートPC | F42: 3 | G42: =VLOOKUP(D42,商品マスター!$A$2:$C$5,3,0) -> 85000 | H42: =F42*G42 -> 255000 | I42: 鈴木 | J42: 香川 | K42: =IF(H42>=300000,"◎",IF(H42>=200000,"○","")) -> ○
B43: 2025-03-21 | C43: 誠電機株式会社 | D43: P004 | E43: =VLOOKUP(D43,商品マスター!$A$2:$C$5,2,0) -> モニター | F43: 3 | G43: =VLOOKUP(D43,商品マスター!$A$2:$C$5,3,0) -> 30000 | H43: =F43*G43 -> 90000 | I43: 鈴木 | J43: 愛媛 | K43: =IF(H43>=300000,"◎",IF(H43>=200000,"○","")) -> 
B44: 2025-03-22 | C44: 誠電機株式会社 | D44: P001 | E44: =VLOOKUP(D44,商品マスター!$A$2:$C$5,2,0) -> ノートPC | F44: 1 | G44: =VLOOKUP(D44,商品マスター!$A$2:$C$5,3,0) -> 85000 | H44: =F44*G44 -> 85000 | I44: 鈴木 | J44: 香川 | K44: =IF(H44>=300000,"◎",IF(H44>=200000,"○","")) -> 
B45: 2025-03-23 | C45: 誠電機株式会社 | D45: P002 | E45: =VLOOKUP(D45,商品マスター!$A$2:$C$5,2,0) -> タブレット | F45: 2 | G45: =VLOOKUP(D45,商品マスター!$A$2:$C$5,3,0) -> 60000 | H45: =F45*G45 -> 120000 | I45: 高橋 | J45: 高知 | K45: =IF(H45>=300000,"◎",IF(H45>=200000,"○","")) -> 
B46: 2025-03-24 | C46: シンエイ電機株式会社 | D46: P002 | E46: =VLOOKUP(D46,商品マスター!$A$2:$C$5,2,0) -> タブレット | F46: 7 | G46: =VLOOKUP(D46,商品マスター!$A$2:$C$5,3,0) -> 60000 | H46: =F46*G46 -> 420000 | I46: 鈴木 | J46: 徳島 | K46: =IF(H46>=300000,"◎",IF(H46>=200000,"○","")) -> ◎
B47: 2025-03-24 | C47: シンエイ電機株式会社 | D47: P003 | E47: =VLOOKUP(D47,商品マスター!$A$2:$C$5,2,0) -> プリンタ | F47: 1 | G47: =VLOOKUP(D47,商品マスター!$A$2:$C$5,3,0) -> 25000 | H47: =F47*G47 -> 25000 | I47: 田中 | J47: 愛媛 | K47: =IF(H47>=300000,"◎",IF(H47>=200000,"○","")) -> 
B48: 2025-03-24 | C48: 大和電販株式会社 | D48: P003 | E48: =VLOOKUP(D48,商品マスター!$A$2:$C$5,2,0) -> プリンタ | F48: 2 | G48: =VLOOKUP(D48,商品マスター!$A$2:$C$5,3,0) -> 25000 | H48: =F48*G48 -> 50000 | I48: 鈴木 | J48: 愛媛 | K48: =IF(H48>=300000,"◎",IF(H48>=200000,"○","")) -> 
B49: 2025-03-25 | C49: 大和電販株式会社 | D49: P001 | E49: =VLOOKUP(D49,商品マスター!$A$2:$C$5,2,0) -> ノートPC | F49: 5 | G49: =VLOOKUP(D49,商品マスター!$A$2:$C$5,3,0) -> 85000 | H49: =F49*G49 -> 425000 | I49: 高橋 | J49: 愛媛 | K49: =IF(H49>=300000,"◎",IF(H49>=200000,"○","")) -> ◎
B50: 2025-03-26 | C50: シンエイ電機株式会社 | D50: P001 | E50: =VLOOKUP(D50,商品マスター!$A$2:$C$5,2,0) -> ノートPC | F50: 4 | G50: =VLOOKUP(D50,商品マスター!$A$2:$C$5,3,0) -> 85000 | H50: =F50*G50 -> 340000 | I50: 高橋 | J50: 高知 | K50: =IF(H50>=300000,"◎",IF(H50>=200000,"○","")) -> ◎
B51: 2025-03-26 | C51: シンエイ電機株式会社 | D51: P003 | E51: =VLOOKUP(D51,商品マスター!$A$2:$C$5,2,0) -> プリンタ | F51: 5 | G51: =VLOOKUP(D51,商品マスター!$A$2:$C$5,3,0) -> 25000 | H51: =F51*G51 -> 125000 | I51: 高橋 | J51: 香川 | K51: =IF(H51>=300000,"◎",IF(H51>=200000,"○","")) -> 
B52: 2025-03-27 | C52: 大和電販株式会社 | D52: P001 | E52: =VLOOKUP(D52,商品マスター!$A$2:$C$5,2,0) -> ノートPC | F52: 2 | G52: =VLOOKUP(D52,商品マスター!$A$2:$C$5,3,0) -> 85000 | H52: =F52*G52 -> 170000 | I52: 田中 | J52: 徳島 | K52: =IF(H52>=300000,"◎",IF(H52>=200000,"○","")) -> 
B53: 2025-03-27 | C53: シンエイ電機株式会社 | D53: P003 | E53: =VLOOKUP(D53,商品マスター!$A$2:$C$5,2,0) -> プリンタ | F53: 4 | G53: =VLOOKUP(D53,商品マスター!$A$2:$C$5,3,0) -> 25000 | H53: =F53*G53 -> 100000 | I53: 佐藤 | J53: 香川 | K53: =IF(H53>=300000,"◎",IF(H53>=200000,"○","")) -> 
B54: 2025-03-27 | C54: シンエイ電機株式会社 | D54: P002 | E54: =VLOOKUP(D54,商品マスター!$A$2:$C$5,2,0) -> タブレット | F54: 1 | G54: =VLOOKUP(D54,商品マスター!$A$2:$C$5,3,0) -> 60000 | H54: =F54*G54 -> 60000 | I54: 鈴木 | J54: 愛媛 | K54: =IF(H54>=300000,"◎",IF(H54>=200000,"○","")) -> 
B55: 2025-03-27 | C55: シンエイ電機株式会社 | D55: P003 | E55: =VLOOKUP(D55,商品マスター!$A$2:$C$5,2,0) -> プリンタ | F55: 1 | G55: =VLOOKUP(D55,商品マスター!$A$2:$C$5,3,0) -> 25000 | H55: =F55*G55 -> 25000 | I55: 高橋 | J55: 徳島 | K55: =IF(H55>=300000,"◎",IF(H55>=200000,"○","")) -> 
B56: 2025-03-28 | C56: シンエイ電機株式会社 | D56: P004 | E56: =VLOOKUP(D56,商品マスター!$A$2:$C$5,2,0) -> モニター | F56: 2 | G56: =VLOOKUP(D56,商品マスター!$A$2:$C$5,3,0) -> 30000 | H56: =F56*G56 -> 60000 | I56: 田中 | J56: 徳島 | K56: =IF(H56>=300000,"◎",IF(H56>=200000,"○","")) -> 
B57: 2025-03-29 | C57: シンエイ電機株式会社 | D57: P002 | E57: =VLOOKUP(D57,商品マスター!$A$2:$C$5,2,0) -> タブレット | F57: 4 | G57: =VLOOKUP(D57,商品マスター!$A$2:$C$5,3,0) -> 60000 | H57: =F57*G57 -> 240000 | I57: 佐藤 | J57: 高知 | K57: =IF(H57>=300000,"◎",IF(H57>=200000,"○","")) -> ○
B58: 2025-03-29 | C58: シンエイ電機株式会社 | D58: P003 | E58: =VLOOKUP(D58,商品マスター!$A$2:$C$5,2,0) -> プリンタ | F58: 1 | G58: =VLOOKUP(D58,商品マスター!$A$2:$C$5,3,0) -> 25000 | H58: =F58*G58 -> 25000 | I58: 田中 | J58: 香川 | K58: =IF(H58>=300000,"◎",IF(H58>=200000,"○","")) -> 
B59: 2025-03-30 | C59: 誠電機株式会社 | D59: P002 | E59: =VLOOKUP(D59,商品マスター!$A$2:$C$5,2,0) -> タブレット | F59: 8 | G59: =VLOOKUP(D59,商品マスター!$A$2:$C$5,3,0) -> 60000 | H59: =F59*G59 -> 480000 | I59: 田中 | J59: 高知 | K59: =IF(H59>=300000,"◎",IF(H59>=200000,"○","")) -> ◎
B60: 2025-03-30 | C60: 誠電機株式会社 | D60: P001 | E60: =VLOOKUP(D60,商品マスター!$A$2:$C$5,2,0) -> ノートPC | F60: 4 | G60: =VLOOKUP(D60,商品マスター!$A$2:$C$5,3,0) -> 85000 | H60: =F60*G60 -> 340000 | I60: 高橋 | J60: 高知 | K60: =IF(H60>=300000,"◎",IF(H60>=200000,"○","")) -> ◎
B61: 2025-03-31 | C61: 大和電販株式会社 | D61: P002 | E61: =VLOOKUP(D61,商品マスター!$A$2:$C$5,2,0) -> タブレット | F61: 2 | G61: =VLOOKUP(D61,商品マスター!$A$2:$C$5,3,0) -> 60000 | H61: =F61*G61 -> 120000 | I61: 佐藤 | J61: 徳島 | K61: =IF(H61>=300000,"◎",IF(H61>=200000,"○","")) -> 
B62: 2025-03-31 | C62: シンエイ電機株式会社 | D62: P004 | E62: =VLOOKUP(D62,商品マスター!$A$2:$C$5,2,0) -> モニター | F62: 3 | G62: =VLOOKUP(D62,商品マスター!$A$2:$C$5,3,0) -> 30000 | H62: =F62*G62 -> 90000 | I62: 高橋 | J62: 高知 | K62: =IF(H62>=300000,"◎",IF(H62>=200000,"○","")) -> 

Sheet 商品マスター
A1: 商品コード | B1: 商品名 | C1: 単価
A2: P001 | B2: ノートPC | C2: 85000
A3: P002 | B3: タブレット | C3: 60000
A4: P003 | B4: プリンタ | C4: 25000
A5: P004 | B5: モニター | C5: 30000

Sheet 売上分析（解答）
A1: ※このシートにピボットテーブルを作成してください。
C2: 地域
A3: 商品名 | B3: 値 | C3: 愛媛 | D3: 香川 | E3: 高知 | F3: 徳島 | G3: 総計
A4: タブレット
B5: 合計 / 数量 | C5: 1 | D5: 10 | E5: 14 | F5: 9 | G5: 34
B6: 合計 / 売上額 | C6: 60000 | D6: 600000 | E6: 840000 | F6: 540000 | G6: 2040000
A7: ノートPC
B8: 合計 / 数量 | C8: 5 | D8: 17 | E8: 19 | F8: 5 | G8: 46
B9: 合計 / 売上額 | C9: 425000 | D9: 1445000 | E9: 1615000 | F9: 425000 | G9: 3910000
A10: プリンタ
B11: 合計 / 数量 | C11: 11 | D11: 10 | E11: 3 | F11: 5 | G11: 29
B12: 合計 / 売上額 | C12: 275000 | D12: 250000 | E12: 75000 | F12: 125000 | G12: 725000
A13: モニター
B14: 合計 / 数量 | C14: 12 | D14: 3 | E14: 27 | F14: 2 | G14: 44
B15: 合計 / 売上額 | C15: 360000 | D15: 90000 | E15: 810000 | F15: 60000 | G15: 1320000
A16: 全体の 合計 / 数量 | C16: 29 | D16: 40 | E16: 63 | F16: 21 | G16: 153
A17: 全体の 合計 / 売上額 | C17: 1120000 | D17: 2385000 | E17: 3340000 | F17: 1150000 | G17: 7995000

Sheet 集計表 (解答)
A1: 営業担当者地域別集計
A3: 営業担当 | B3: 地域 | C3: 商品名 | D3: 単価 | E3: 数量 | F3: 売上額
A4: 高橋 | B4: 愛媛 | C4: モニター | D4: 30000 | E4: 1 | F4: =D4*E4 -> 30000
A5: 高橋 | B5: 愛媛 | C5: プリンタ | D5: 25000 | E5: 2 | F5: =D5*E5 -> 50000
A6: 高橋 | B6: 愛媛 | C6: ノートPC | D6: 85000 | E6: 5 | F6: =D6*E6 -> 425000
B7: 愛媛 集計 | E7: =SUBTOTAL(9,E4:E6) -> 8 | F7: =SUBTOTAL(9,F4:F6) -> 505000
A8: 高橋 | B8: 香川 | C8: ノートPC | D8: 85000 | E8: 3 | F8: =D8*E8 -> 255000
A9: 高橋 | B9: 香川 | C9: ノートPC | D9: 85000 | E9: 5 | F9: =D9*E9 -> 425000
A10: 高橋 | B10: 香川 | C10: ノートPC | D10: 85000 | E10: 3 | F10: =D10*E10 -> 255000
A11: 高橋 | B11: 香川 | C11: プリンタ | D11: 25000 | E11: 5 | F11: =D11*E11 -> 125000
B12: 香川 集計 | E12: =SUBTOTAL(9,E8:E11) -> 16 | F12: =SUBTOTAL(9,F8:F11) -> 1060000
A13: 高橋 | B13: 高知 | C13: モニター | D13: 30000 | E13: 4 | F13: =D13*E13 -> 120000
A14: 高橋 | B14: 高知 | C14: ノートPC | D14: 85000 | E14: 3 | F14: 255000
A15: 高橋 | B15: 高知 | C15: タブレット | D15: 60000 | E15: 2 | F15: 120000
A16: 高橋 | B16: 高知 | C16: ノートPC | D16: 85000 | E16: 4 | F16: 340000
A17: 高橋 | B17: 高知 | C17: ノートPC | D17: 85000 | E17: 4 | F17: 340000
A18: 高橋 | B18: 高知 | C18: モニター | D18: 30000 | E18: 3 | F18: 90000
B19: 高知 集計 | E19: =SUBTOTAL(9,E13:E18) -> 20 | F19: =SUBTOTAL(9,F13:F18) -> 1265000
A20: 高橋 | B20: 徳島 | C20: プリンタ | D20: 25000 | E20: 1 | F20: =D20*E20 -> 25000
B21: 徳島 集計 | E21: =SUBTOTAL(9,E20:E20) -> 1 | F21: =SUBTOTAL(9,F20:F20) -> 25000
A22: 高橋 集計 | E22: =SUBTOTAL(9,E4:E20) -> 45 | F22: =SUBTOTAL(9,F4:F20) -> 2855000
A23: 佐藤 | B23: 香川 | C23: タブレット | D23: 60000 | E23: 1 | F23: =D23*E23 -> 60000
A24: 佐藤 | B24: 香川 | C24: モニター | D24: 30000 | E24: 3 | F24: =D24*E24 -> 90000
A25: 佐藤 | B25: 香川 | C25: タブレット | D25: 60000 | E25: 5 | F25: =D25*E25 -> 300000
A26: 佐藤 | B26: 香川 | C26: プリンタ | D26: 25000 | E26: 4 | F26: =D26*E26 -> 100000
B27: 香川 集計 | E27: =SUBTOTAL(9,E23:E26) -> 13 | F27: =SUBTOTAL(9,F23:F26) -> 550000
A28: 佐藤 | B28: 高知 | C28: モニター | D28: 30000 | E28: 3 | F28: =D28*E28 -> 90000
A29: 佐藤 | B29: 高知 | C29: モニター | D29: 30000 | E29: 5 | F29: =D29*E29 -> 150000
A30: 佐藤 | B30: 高知 | C30: プリンタ | D30: 25000 | E30: 1 | F30: =D30*E30 -> 25000
A31: 佐藤 | B31: 高知 | C31: タブレット | D31: 60000 | E31: 4 | F31: =D31*E31 -> 240000
B32: 高知 集計 | E32: =SUBTOTAL(9,E28:E31) -> 13 | F32: =SUBTOTAL(9,F28:F31) -> 505000
A33: 佐藤 | B33: 徳島 | C33: プリンタ | D33: 25000 | E33: 4 | F33: =D33*E33 -> 100000
A34: 佐藤 | B34: 徳島 | C34: タブレット | D34: 60000 | E34: 2 | F34: =D34*E34 -> 120000
B35: 徳島 集計 | E35: =SUBTOTAL(9,E33:E34) -> 6 | F35: =SUBTOTAL(9,F33:F34) -> 220000
A36: 佐藤 集計 | E36: =SUBTOTAL(9,E23:E34) -> 32 | F36: =SUBTOTAL(9,F23:F34) -> 1275000
A37: 田中 | B37: 愛媛 | C37: モニター | D37: 30000 | E37: 2 | F37: =D37*E37 -> 60000
A38: 田中 | B38: 愛媛 | C38: プリンタ | D38: 25000 | E38: 4 | F38: =D38*E38 -> 100000
A39: 田中 | B39: 愛媛 | C39: プリンタ | D39: 25000 | E39: 1 | F39: =D39*E39 -> 25000
B40: 愛媛 集計 | E40: =SUBTOTAL(9,E37:E39) -> 7 | F40: =SUBTOTAL(9,F37:F39) -> 185000
A41: 田中 | B41: 香川 | C41: タブレット | D41: 60000 | E41: 4 | F41: =D41*E41 -> 240000
A42: 田中 | B42: 香川 | C42: プリンタ | D42: 25000 | E42: 1 | F42: =D42*E42 -> 25000
B43: 香川 集計 | E43: =SUBTOTAL(9,E41:E42) -> 5 | F43: =SUBTOTAL(9,F41:F42) -> 265000
A44: 田中 | B44: 高知 | C44: モニター | D44: 30000 | E44: 3 | F44: =D44*E44 -> 90000
A45: 田中 | B45: 高知 | C45: ノートPC | D45: 85000 | E45: 3 | F45: =D45*E45 -> 255000
A46: 田中 | B46: 高知 | C46: モニター | D46: 30000 | E46: 4 | F46: =D46*E46 -> 120000
A47: 田中 | B47: 高知 | C47: タブレット | D47: 60000 | E47: 8 | F47: =D47*E47 -> 480000
B48: 高知 集計 | E48: =SUBTOTAL(9,E44:E47) -> 18 | F48: =SUBTOTAL(9,F44:F47) -> 945000
A49: 田中 | B49: 徳島 | C49: ノートPC | D49: 85000 | E49: 3 | F49: =D49*E49 -> 255000
A50: 田中 | B50: 徳島 | C50: ノートPC | D50: 85000 | E50: 2 | F50: =D50*E50 -> 170000
A51: 田中 | B51: 徳島 | C51: モニター | D51: 30000 | E51: 2 | F51: =D51*E51 -> 60000
B52: 徳島 集計 | E52: =SUBTOTAL(9,E49:E51) -> 7 | F52: =SUBTOTAL(9,F49:F51) -> 485000
A53: 田中 集計 | E53: =SUBTOTAL(9,E37:E51) -> 37 | F53: =SUBTOTAL(9,F37:F51) -> 1880000
A54: 鈴木 | B54: 愛媛 | C54: モニター | D54: 30000 | E54: 5 | F54: =D54*E54 -> 150000
A55: 鈴木 | B55: 愛媛 | C55: プリンタ | D55: 25000 | E55: 2 | F55: 50000
A56: 鈴木 | B56: 愛媛 | C56: モニター | D56: 30000 | E56: 1 | F56: 30000
A57: 鈴木 | B57: 愛媛 | C57: モニター | D57: 30000 | E57: 3 | F57: 90000
A58: 鈴木 | B58: 愛媛 | C58: プリンタ | D58: 25000 | E58: 2 | F58: 50000
A59: 鈴木 | B59: 愛媛 | C59: タブレット | D59: 60000 | E59: 1 | F59: 60000
B60: 愛媛 集計 | E60: =SUBTOTAL(9,E54:E59) -> 14 | F60: =SUBTOTAL(9,F54:F59) -> 430000
A61: 鈴木 | B61: 香川 | C61: ノートPC | D61: 85000 | E61: 2 | F61: =D61*E61 -> 170000
A62: 鈴木 | B62: 香川 | C62: ノートPC | D62: 85000 | E62: 3 | F62: =D62*E62 -> 255000
A63: 鈴木 | B63: 香川 | C63: ノートPC | D63: 85000 | E63: 1 | F63: =D63*E63 -> 85000
B64: 香川 集計 | E64: =SUBTOTAL(9,E61:E63) -> 6 | F64: =SUBTOTAL(9,F61:F63) -> 510000
A65: 鈴木 | B65: 高知 | C65: モニター | D65: 30000 | E65: 5 | F65: =D65*E65 -> 150000
A66: 鈴木 | B66: 高知 | C66: ノートPC | D66: 85000 | E66: 1 | F66: =D66*E66 -> 85000
A67: 鈴木 | B67: 高知 | C67: プリンタ | D67: 25000 | E67: 2 | F67: =D67*E67 -> 50000
A68: 鈴木 | B68: 高知 | C68: ノートPC | D68: 85000 | E68: 4 | F68: =D68*E68 -> 340000
B69: 高知 集計 | E69: =SUBTOTAL(9,E65:E68) -> 12 | F69: =SUBTOTAL(9,F65:F68) -> 625000
A70: 鈴木 | B70: 徳島 | C70: タブレット | D70: 60000 | E70: 7 | F70: =D70*E70 -> 420000
B71: 徳島 集計 | E71: =SUBTOTAL(9,E70:E70) -> 7 | F71: =SUBTOTAL(9,F70:F70) -> 420000
A72: 鈴木 集計 | E72: =SUBTOTAL(9,E54:E70) -> 39 | F72: =SUBTOTAL(9,F54:F70) -> 1985000
A73: 総計 | E73: =SUBTOTAL(9,E4:E70) -> 153 | F73: =SUBTOTAL(9,F4:F70) -> 7995000

Sheet 集計データ
A1: 商品別売上集計
B3: 高知 | C3: 愛媛 | D3: 香川 | E3: 徳島 | F3: 平均
A4: タブレット | B4: 840000 | C4: 60000 | D4: 600000 | E4: 540000 | F4: =AVERAGE(B4:E4) -> 510000
A5: ノートPC | B5: 1615000 | C5: 425000 | D5: 1445000 | E5: 425000 | F5: =AVERAGE(B5:E5) -> 977500
A6: プリンタ | B6: 75000 | C6: 275000 | D6: 250000 | E6: 125000 | F6: 181250
A7: モニター | B7: 810000 | C7: 360000 | D7: 90000 | E7: 60000 | F7: 330000
A8: 平均 | B8: =AVERAGE(B4:B7) -> 835000 | C8: 280000 | D8: 596250 | E8: =AVERAGE(E4:E7) -> 287500 | F8: 499687.5

Sheet 仕入計画（解答）
B2: 仕入計画表
B3: 商品名 | C3: 仕入単価 | D3: 売価 | E3: 利益 | F3: 仕入台数 | G3: 仕入金額 | H3: 総利益
B4: ノートPC | C4: 65000 | D4: 85000 | E4: 20000 | F4: 7 | G4: =C4*F4 -> 455000 | H4: =E4*F4 -> 140000
B5: タブレット | C5: 45000 | D5: 60000 | E5: 15000 | F5: 6 | G5: =C5*F5 -> 270000 | H5: =E5*F5 -> 90000
B6: プリンタ | C6: 20000 | D6: 30000 | E6: 10000 | F6: 5 | G6: =C6*F6 -> 100000 | H6: =E6*F6 -> 50000
B7: モニター | C7: 25000 | D7: 30000 | E7: 5000 | F7: 7 | G7: =C7*F7 -> 175000 | H7: =E7*F7 -> 35000
B8: 合計 | F8: =SUM(F4:F7) -> 25 | G8: =SUM(G4:G7) -> 1000000 | H8: =SUM(H4:H7) -> 315000

Sheet 知識試験
B2: 【問題Ⅵ | C2: 下の問題に解答しなさい。解答は解答欄に入力しなさい。
B4: 1 | C4: 列全体を選択するショートカットキーとして正しいのは次のうちどれか答えなさい。
C6: ① | D6: alt+ Space | F6: ② | G6: Ctrl + Space | I6: ③ | J6: Shift + Space | L6: ④ | M6: Ctrl + Shift + Enter | P6: 解答 | Q6: ②
B9: 2 | C9: 新しいワークシートを挿入するショートカットとして正しいのは次のうちどれか答えなさい。
C11: ① | D11: Alt + F1 | F11: ② | G11: Ctrl + Shift + N | I11: ③ | J11: Shift + F11 | L11: ④ | M11: Ctrl + Shift + Insert | P11: 解答 | Q11: ③
B13: 3 | C13: ROUND関数の桁数（第2引数）に「-1」を指定すると四捨五入される桁は次のうちどれか答えなさい。
C15: ① | D15: 小数点第1位を四捨五入 | F15: ② | G15: 1の位を四捨五入 | I15: ③ | J15: 10の位を四捨五入 | L15: ④ | M15: エラーになる | P15: 解答 | Q15: ②
B17: 4 | C17: ＜図1＞において、セルF２に「=B２&C２&D２」と入力した場合の結果はどのようになる。
C19: ＜図１＞ | I19: ① | J19: 3つの値が文字列として連結
I20: ② | J20: 各セルの合計
I21: ③ | J21: 複数セルの平均 | P21: 解答 | Q21: ①
I22: ④ | J22: エラーになる
B24: 5 | C24: ショートカットキーの【Ctrl + ; 】で挿入されるのは次のうちどれか答えなさい。
C26: ① | D26: 現在の時刻 | F26: ② | G26: 現在の日付 | I26: ③ | J26: セルのコメント | L26: ④ | M26: シート名 | P26: 解答 | Q26: ②
B28: 6 | C28: Excelファイルにパスワードを設定する方法として正しいのは次のうちどれか答えなさい。
C30: ① | D30: 「校閲」→「シート保護」 | I30: ② | J30: 「ファイル」→「情報」→「ブックの保護」 | P30: 解答 | Q30: ②
C31: ③ | D31: 「データ」→「データの入力規則」 | I31: ④ | J31: 「ファイル」→「情報」→「ブックの管理」
B33: 7 | C33: 複数のシートを一括で印刷する方法として正しいのは次のうちどれか答えなさい。
C35: ① | D35: シートを複数選択して印刷 | I35: ② | J35: ファイルを保存してから印刷 | P35: 解答 | Q35: ①
C36: ③ | D36: シートを並べ替えてから印刷 | I36: ④ | J36: ページレイアウトタブで設定
B38: 8 | C38: グラフの「凡例」とは次のうちどれか答えなさい。
C40: ① | D40: グラフの背景色を示す設定 | I40: ② | J40: グラフを印刷するための区切り | P40: 解答 | Q40: ④
C41: ③ | D41: 軸のタイトルを変更する操作 | I41: ④ | J41: 各系列が何を表すかを示す案内
B43: 9 | C43: TEXT関数で「2025/05/09」の日付を「2025年05月09日」にしたいときの書式は次のうちどれか答えなさい。
C45: ① | D45: yyyy"年"mm"月"dd"日" | G45: ② | H45: yyyy年mm月dd日 | K45: ③ | L45: "yyyy年mm月dd日" | P45: 解答 | Q45: ③
B48: 10 | C48: 「=$A$1」と「=A1」の違いを答えなさい。
C50: ① | D50: コピーしたときに参照先が変わるかどうか | I50: ② | J50: 見た目だけの違い | P50: 解答 | Q50: ①
